[Event "*** Titled Tuesday Blitz"]
[Site "Chess.com"]
[Date "2021.03.02"]
[Round "9"]
[White "maheswaran26"]
[Black "Herman-NY"]
[Result "1-0"]
[WhiteElo "2322"]
[BlackElo "2445"]
[TimeControl "180+1"]
[EndTime "11:48:06 PST"]
[Termination "maheswaran26 won by resignation"]

1. d4 {[%clk 0:02:59.1]} 1... Nf6 {[%clk 0:02:59.5]} 2. Nf3 {[%clk 0:02:58.3]}
2... g6 {[%clk 0:02:59.9]} 3. c4 {[%clk 0:02:57.9]} 3... Bg7 {[%clk 0:03:00.4]}
4. Nc3 {[%clk 0:02:57.5]} 4... d6 {[%clk 0:03:01]} 5. e4 {[%clk 0:02:56.4]} 5...
O-O {[%clk 0:03:01.2]} 6. h3 {[%clk 0:02:56.3]} 6... c6 {[%clk 0:02:59.7]} 7.
Bg5 {[%clk 0:02:55.2]} 7... e5 {[%clk 0:02:44.8]} 8. d5 {[%clk 0:02:36]} 8...
Qa5 {[%clk 0:02:30.7]} 9. Nd2 {[%clk 0:02:30.5]} 9... cxd5 {[%clk 0:02:24.1]}
10. cxd5 {[%clk 0:02:29.7]} 10... h6 {[%clk 0:02:08.2]} 11. Be3 {[%clk
0:02:21.8]} 11... Ne8 {[%clk 0:02:02.7]} 12. g4 {[%clk 0:02:14.4]} 12... a6
{[%clk 0:01:55.2]} 13. Nc4 {[%clk 0:02:12]} 13... Qd8 {[%clk 0:01:55.1]} 14. Nb6
{[%clk 0:02:12.2]} 14... Nd7 {[%clk 0:01:52]} 15. Nxa8 {[%clk 0:02:10.8]} 15...
b5 {[%clk 0:01:52.5]} 16. Qb3 {[%clk 0:00:52.9]} 16... Bb7 {[%clk 0:01:48.6]}
17. a4 {[%clk 0:00:52.9]} 17... Bxa8 {[%clk 0:01:37.4]} 18. axb5 {[%clk
0:00:52.3]} 18... axb5 {[%clk 0:01:37.5]} 19. Bxb5 {[%clk 0:00:50]} 19... Nc5
{[%clk 0:01:31.8]} 20. Bxc5 {[%clk 0:00:48.4]} 20... dxc5 {[%clk 0:01:32.7]} 21.
Qa4 {[%clk 0:00:43.7]} 21... Nd6 {[%clk 0:01:29.6]} 22. Bc6 {[%clk 0:00:42.9]}
22... Bxc6 {[%clk 0:01:03.5]} 23. dxc6 {[%clk 0:00:42.4]} 23... Qh4 {[%clk
0:00:43]} 24. Nd5 {[%clk 0:00:36.7]} 24... f5 {[%clk 0:00:36.3]} 25. exf5 {[%clk
0:00:21.3]} 25... gxf5 {[%clk 0:00:36.3]} 26. gxf5 {[%clk 0:00:16.5]} 26... e4
{[%clk 0:00:36.8]} 27. O-O-O {[%clk 0:00:14]} 27... Rxf5 {[%clk 0:00:17.2]} 28.
Ne3 {[%clk 0:00:12.3]} 28... Qf6 {[%clk 0:00:13.6]} 29. Qc2 {[%clk 0:00:10.5]}
29... Rxf2 {[%clk 0:00:13.5]} 30. Rd2 {[%clk 0:00:10]} 30... Rf3 {[%clk
0:00:10.6]} 31. Ng4 {[%clk 0:00:09.3]} 31... Qf4 {[%clk 0:00:09.5]} 32. c7
{[%clk 0:00:08.3]} 32... Rd3 {[%clk 0:00:07]} 33. Rd1 {[%clk 0:00:07]} 33... Bd4
{[%clk 0:00:06]} 34. Nxh6+ {[%clk 0:00:05.9]} 34... Qxh6 {[%clk 0:00:05.4]} 35.
Qa4 {[%clk 0:00:05]} 35... Qf8 {[%clk 0:00:05.1]} 36. Qd7 {[%clk 0:00:04.6]}
36... Nc8 {[%clk 0:00:05.2]} 37. Qe6+ {[%clk 0:00:03.8]} 37... Kh7 {[%clk
0:00:04.7]} 38. Qxe4+ {[%clk 0:00:04.3]} 38... Kh8 {[%clk 0:00:05.4]} 39. Qxd3
{[%clk 0:00:04.9]} 39... Bg7 {[%clk 0:00:06.3]} 40. Qc4 {[%clk 0:00:04.3]} 40...
Qf6 {[%clk 0:00:05.8]} 41. Rd8+ {[%clk 0:00:03.9]} 41... Kh7 {[%clk 0:00:06.3]}
42. Qe4+ {[%clk 0:00:04.4]} 42... Kh6 {[%clk 0:00:06]} 43. Qe3+ {[%clk
0:00:04.6]} 43... Kh5 {[%clk 0:00:06.5]} 44. Qe2+ {[%clk 0:00:04.2]} 44... Kh6
{[%clk 0:00:07.1]} 45. Qd2+ {[%clk 0:00:04.1]} 45... Kh7 {[%clk 0:00:07.3]} 46.
Rxc8 {[%clk 0:00:04.5]} 46... Qa6 {[%clk 0:00:06.6]} 47. Qc2+ {[%clk 0:00:03.9]}
47... Kh6 {[%clk 0:00:06.5]} 48. Qd2+ {[%clk 0:00:03.9]} 48... Kh7 {[%clk
0:00:06.8]} 49. Qd3+ {[%clk 0:00:04.2]} 49... Kh6 {[%clk 0:00:07.3]} 50. Qxa6+
{[%clk 0:00:04]} 1-0

[Event "*** Titled Tuesday Blitz"]
[Site "Chess.com"]
[Date "2021.03.02"]
[Round "9"]
[White "AttackSparrow"]
[Black "Supernotar"]
[Result "0-1"]
[WhiteElo "2537"]
[BlackElo "2682"]
[TimeControl "180+1"]
[EndTime "11:48:07 PST"]
[Termination "Supernotar won on time"]

1. e4 {[%clk 0:03:00.9]} 1... c6 {[%clk 0:02:59.2]} 2. d4 {[%clk 0:03:00.6]}
2... d5 {[%clk 0:02:57.8]} 3. exd5 {[%clk 0:03:01.5]} 3... cxd5 {[%clk
0:02:58.4]} 4. c4 {[%clk 0:03:02.1]} 4... Nf6 {[%clk 0:02:57.7]} 5. Nc3 {[%clk
0:03:02.3]} 5... e6 {[%clk 0:02:57.6]} 6. Nf3 {[%clk 0:03:01.8]} 6... Be7 {[%clk
0:02:57.2]} 7. cxd5 {[%clk 0:03:01.4]} 7... Nxd5 {[%clk 0:02:56.5]} 8. Bd3
{[%clk 0:03:01.8]} 8... Nc6 {[%clk 0:02:55.5]} 9. O-O {[%clk 0:02:59.7]} 9...
O-O {[%clk 0:02:54.6]} 10. Re1 {[%clk 0:02:58.2]} 10... Bf6 {[%clk 0:02:49.9]}
11. Be4 {[%clk 0:02:48]} 11... Nce7 {[%clk 0:02:48.7]} 12. Qd3 {[%clk
0:02:44.7]} 12... g6 {[%clk 0:02:47.6]} 13. a3 {[%clk 0:02:44.2]} 13... Bg7
{[%clk 0:02:41.9]} 14. Bg5 {[%clk 0:02:36.2]} 14... Qd6 {[%clk 0:02:33.1]} 15.
Qe2 {[%clk 0:02:23.3]} 15... h6 {[%clk 0:02:20.7]} 16. Bh4 {[%clk 0:02:19.8]}
16... Kh7 {[%clk 0:02:09.1]} 17. Bg3 {[%clk 0:02:18.2]} 17... Qd8 {[%clk
0:02:04.2]} 18. Rad1 {[%clk 0:02:12.2]} 18... b6 {[%clk 0:01:59.7]} 19. Ne5
{[%clk 0:02:09.6]} 19... Bb7 {[%clk 0:01:57.2]} 20. Nxd5 {[%clk 0:01:54.1]}
20... Bxd5 {[%clk 0:01:50.2]} 21. Bb1 {[%clk 0:01:54]} 21... Rc8 {[%clk
0:01:45.2]} 22. h4 {[%clk 0:01:50.4]} 22... Nf5 {[%clk 0:01:42.8]} 23. h5 {[%clk
0:01:35]} 23... Qg5 {[%clk 0:01:42.6]} 24. hxg6+ {[%clk 0:01:31.2]} 24... fxg6
{[%clk 0:01:43.5]} 25. Nf3 {[%clk 0:01:07.9]} 25... Qh5 {[%clk 0:01:37.8]} 26.
Be5 {[%clk 0:01:04.8]} 26... Bxe5 {[%clk 0:01:31.4]} 27. Nxe5 {[%clk 0:01:02.3]}
27... Qg5 {[%clk 0:01:23.4]} 28. Qg4 {[%clk 0:00:55.8]} 28... Qxg4 {[%clk
0:01:20.9]} 29. Nxg4 {[%clk 0:00:56.7]} 29... Kg7 {[%clk 0:01:17.5]} 30. Be4
{[%clk 0:00:51.7]} 30... Bb3 {[%clk 0:01:09]} 31. Rd2 {[%clk 0:00:46.8]} 31...
Rfd8 {[%clk 0:01:06.6]} 32. d5 {[%clk 0:00:23.7]} 32... Bxd5 {[%clk 0:01:01.4]}
33. Bxd5 {[%clk 0:00:22]} 33... Rxd5 {[%clk 0:00:59.5]} 34. Rde2 {[%clk
0:00:21.8]} 34... Nd4 {[%clk 0:00:55.7]} 35. Re4 {[%clk 0:00:21.5]} 35... h5
{[%clk 0:00:46.1]} 36. Ne3 {[%clk 0:00:21.1]} 36... Rd6 {[%clk 0:00:44.1]} 37.
Nd1 {[%clk 0:00:19]} 37... Rc1 {[%clk 0:00:41.4]} 38. Nc3 {[%clk 0:00:17.8]}
38... Rxe1+ {[%clk 0:00:36.5]} 39. Rxe1 {[%clk 0:00:18.7]} 39... Kf7 {[%clk
0:00:32.6]} 40. f3 {[%clk 0:00:18.6]} 40... Ke7 {[%clk 0:00:30]} 41. Kf2 {[%clk
0:00:18.8]} 41... b5 {[%clk 0:00:24.6]} 42. Ne4 {[%clk 0:00:18.3]} 42... Rc6
{[%clk 0:00:23.5]} 43. Rd1 {[%clk 0:00:18.6]} 43... e5 {[%clk 0:00:20.5]} 44.
Nc3 {[%clk 0:00:18.7]} 44... a5 {[%clk 0:00:19]} 45. f4 {[%clk 0:00:18.8]} 45...
Kd6 {[%clk 0:00:15.5]} 46. fxe5+ {[%clk 0:00:18.8]} 46... Kxe5 {[%clk
0:00:16.1]} 47. Re1+ {[%clk 0:00:19.2]} 47... Kf5 {[%clk 0:00:16.1]} 48. Rd1
{[%clk 0:00:17.1]} 48... Rc4 {[%clk 0:00:14.5]} 49. Rd3 {[%clk 0:00:09.3]} 49...
b4 {[%clk 0:00:13.3]} 50. axb4 {[%clk 0:00:08.6]} 50... axb4 {[%clk 0:00:14.2]}
51. Nd5 {[%clk 0:00:08.7]} 51... Rc2+ {[%clk 0:00:12.8]} 52. Kf1 {[%clk
0:00:07.5]} 52... Ke4 {[%clk 0:00:09.5]} 53. Nxb4 {[%clk 0:00:07.5]} 53... Rxb2
{[%clk 0:00:08]} 0-1

[Event "*** Titled Tuesday Blitz"]
[Site "Chess.com"]
[Date "2021.03.02"]
[Round "9"]
[White "Matensien"]
[Black "MillyNeuf"]
[Result "1-0"]
[WhiteElo "2476"]
[BlackElo "2274"]
[TimeControl "180+1"]
[EndTime "11:48:08 PST"]
[Termination "Matensien won on time"]

1. d4 {[%clk 0:03:00.9]} 1... Nf6 {[%clk 0:02:59.8]} 2. c4 {[%clk 0:03:00.7]}
2... e6 {[%clk 0:02:59.9]} 3. Nc3 {[%clk 0:03:00]} 3... Bb4 {[%clk 0:03:00]} 4.
Qc2 {[%clk 0:03:00.5]} 4... O-O {[%clk 0:02:59.7]} 5. Nf3 {[%clk 0:03:01.1]}
5... d5 {[%clk 0:02:59]} 6. cxd5 {[%clk 0:03:00.8]} 6... exd5 {[%clk 0:02:59.9]}
7. Bg5 {[%clk 0:03:00]} 7... c6 {[%clk 0:02:58.7]} 8. e3 {[%clk 0:02:58.5]} 8...
h6 {[%clk 0:02:55.3]} 9. Bh4 {[%clk 0:02:57.9]} 9... g5 {[%clk 0:02:52.9]} 10.
Bg3 {[%clk 0:02:57.4]} 10... Ne4 {[%clk 0:02:52.8]} 11. Bd3 {[%clk 0:02:56.1]}
11... Bf5 {[%clk 0:02:51.3]} 12. a3 {[%clk 0:02:47.7]} 12... Bxc3+ {[%clk
0:02:39.9]} 13. bxc3 {[%clk 0:02:48.6]} 13... Nd7 {[%clk 0:02:25.3]} 14. Nd2
{[%clk 0:02:39.5]} 14... Nxg3 {[%clk 0:02:13.8]} 15. hxg3 {[%clk 0:02:37.5]}
15... Bxd3 {[%clk 0:02:11.2]} 16. Qxd3 {[%clk 0:02:38.4]} 16... Qf6 {[%clk
0:02:11.3]} 17. g4 {[%clk 0:02:29]} 17... Kg7 {[%clk 0:02:09.7]} 18. Nf1 {[%clk
0:02:28.2]} 18... Qg6 {[%clk 0:02:02.3]} 19. Kd2 {[%clk 0:02:27]} 19... Qxd3+
{[%clk 0:01:56.8]} 20. Kxd3 {[%clk 0:02:27.9]} 20... f5 {[%clk 0:01:41.2]} 21.
gxf5 {[%clk 0:02:23.8]} 21... Rxf5 {[%clk 0:01:42.1]} 22. f3 {[%clk 0:02:23.7]}
22... Re8 {[%clk 0:01:36]} 23. Ng3 {[%clk 0:02:22.8]} 23... Rf7 {[%clk
0:01:34.7]} 24. Rhf1 {[%clk 0:02:18.1]} 24... Kg6 {[%clk 0:01:29.4]} 25. e4
{[%clk 0:02:18.1]} 25... dxe4+ {[%clk 0:01:26.2]} 26. fxe4 {[%clk 0:02:17.6]}
26... Nf6 {[%clk 0:01:12.9]} 27. Rf3 {[%clk 0:02:07]} 27... Rfe7 {[%clk
0:01:01.7]} 28. Re1 {[%clk 0:01:59]} 28... h5 {[%clk 0:00:55.3]} 29. e5 {[%clk
0:01:36.5]} 29... Nd5 {[%clk 0:00:50.8]} 30. Ne4 {[%clk 0:01:29.5]} 30... Nf4+
{[%clk 0:00:50.2]} 31. Kd2 {[%clk 0:01:29.8]} 31... h4 {[%clk 0:00:42.2]} 32. g3
{[%clk 0:01:24.8]} 32... hxg3 {[%clk 0:00:37.3]} 33. Rxg3 {[%clk 0:01:23.5]}
33... Ne6 {[%clk 0:00:14]} 34. Nxg5 {[%clk 0:01:16.6]} 34... Nxg5 {[%clk
0:00:07.9]} 35. Reg1 {[%clk 0:01:17.2]} 35... Kf5 {[%clk 0:00:07.8]} 36. Rxg5+
{[%clk 0:01:17.8]} 36... Ke4 {[%clk 0:00:07.8]} 37. R1g4+ {[%clk 0:01:11.9]}
37... Kd5 {[%clk 0:00:08.1]} 38. Kd3 {[%clk 0:01:07.3]} 38... b5 {[%clk
0:00:08.5]} 39. Rg6 {[%clk 0:01:07]} 39... Re6 {[%clk 0:00:07]} 40. a4 {[%clk
0:01:03.1]} 40... a6 {[%clk 0:00:06.1]} 41. Rxe6 {[%clk 0:01:02.2]} 41... Rxe6
{[%clk 0:00:04.7]} 42. Rg7 {[%clk 0:01:02.4]} 42... c5 {[%clk 0:00:03.1]} 43.
axb5 {[%clk 0:00:53.2]} 43... axb5 {[%clk 0:00:04]} 44. Rb7 {[%clk 0:00:38.8]}
44... cxd4 {[%clk 0:00:02.4]} 45. cxd4 {[%clk 0:00:33.2]} 45... Rh6 {[%clk
0:00:01.7]} 46. Rxb5+ {[%clk 0:00:29.7]} 46... Kc6 {[%clk 0:00:02.2]} 47. Rc5+
{[%clk 0:00:29.9]} 47... Kd7 {[%clk 0:00:02.3]} 48. Kc4 {[%clk 0:00:28.7]} 48...
Rh1 {[%clk 0:00:03.2]} 49. Kd5 {[%clk 0:00:28.7]} 49... Ke7 {[%clk 0:00:03.7]}
50. Ra5 {[%clk 0:00:28.4]} 50... Rb1 {[%clk 0:00:02.7]} 51. Ra7+ {[%clk
0:00:28.2]} 51... Kd8 {[%clk 0:00:03.1]} 52. e6 {[%clk 0:00:28.2]} 52... Kc8
{[%clk 0:00:03.1]} 53. Ke5 {[%clk 0:00:26.1]} 53... Rb5+ {[%clk 0:00:03.4]} 54.
d5 {[%clk 0:00:25.7]} 54... Rb1 {[%clk 0:00:04.1]} 55. Rh7 {[%clk 0:00:22.3]}
55... Re1+ {[%clk 0:00:03.8]} 56. Kd6 {[%clk 0:00:22.3]} 56... Kb8 {[%clk
0:00:03.9]} 57. Rh8+ {[%clk 0:00:22.7]} 57... Kb7 {[%clk 0:00:04.3]} 58. e7
{[%clk 0:00:23.2]} 58... Re2 {[%clk 0:00:01.5]} 59. e8=Q {[%clk 0:00:22.8]} 1-0

[Event "*** Titled Tuesday Blitz"]
[Site "Chess.com"]
[Date "2021.03.02"]
[Round "9"]
[White "JulianProleiko"]
[Black "mbojan"]
[Result "0-1"]
[WhiteElo "2439"]
[BlackElo "2619"]
[TimeControl "180+1"]
[EndTime "11:48:10 PST"]
[Termination "mbojan won by resignation"]

1. e4 {[%clk 0:03:00.9]} 1... g6 {[%clk 0:03:00.9]} 2. d4 {[%clk 0:02:58]} 2...
Bg7 {[%clk 0:03:01.5]} 3. Nc3 {[%clk 0:02:57.4]} 3... d6 {[%clk 0:03:02.1]} 4.
f4 {[%clk 0:02:51.5]} 4... a6 {[%clk 0:03:02.2]} 5. Nf3 {[%clk 0:02:51.6]} 5...
b5 {[%clk 0:03:02.6]} 6. Bd3 {[%clk 0:02:51.8]} 6... Nd7 {[%clk 0:03:02.3]} 7.
Qe2 {[%clk 0:02:49.7]} 7... c5 {[%clk 0:03:01.2]} 8. e5 {[%clk 0:02:49.8]} 8...
cxd4 {[%clk 0:02:48.9]} 9. Ne4 {[%clk 0:02:19.6]} 9... Nh6 {[%clk 0:02:44.1]}
10. a4 {[%clk 0:02:12.4]} 10... b4 {[%clk 0:01:56.8]} 11. exd6 {[%clk
0:01:57.6]} 11... O-O {[%clk 0:01:54.4]} 12. O-O {[%clk 0:01:55.8]} 12... Bb7
{[%clk 0:01:45.6]} 13. Ne5 {[%clk 0:01:37.5]} 13... Nf5 {[%clk 0:01:31.1]} 14.
Nxd7 {[%clk 0:01:35.5]} 14... Qxd7 {[%clk 0:00:50.4]} 15. Nc5 {[%clk 0:01:34.6]}
15... Qxd6 {[%clk 0:00:46.1]} 16. Nxb7 {[%clk 0:01:33.6]} 16... Qb6 {[%clk
0:00:46.6]} 17. Qf3 {[%clk 0:01:10.6]} 17... Rab8 {[%clk 0:00:36.3]} 18. Be4
{[%clk 0:01:10.5]} 18... d3+ {[%clk 0:00:27.1]} 19. Kh1 {[%clk 0:01:10.8]} 19...
Nd4 {[%clk 0:00:25.9]} 20. Qf2 {[%clk 0:01:05.7]} 20... Rxb7 {[%clk 0:00:17.7]}
21. Bxb7 {[%clk 0:01:03.3]} 21... Qxb7 {[%clk 0:00:18.6]} 22. cxd3 {[%clk
0:01:02.8]} 22... Nb3 {[%clk 0:00:18]} 23. Rb1 {[%clk 0:01:01.6]} 23... Qd7
{[%clk 0:00:18]} 24. Be3 {[%clk 0:00:59.7]} 24... Qxa4 {[%clk 0:00:17.7]} 25. f5
{[%clk 0:00:59.1]} 25... Qb5 {[%clk 0:00:16.2]} 26. fxg6 {[%clk 0:00:56.9]}
26... hxg6 {[%clk 0:00:17.1]} 27. Qc2 {[%clk 0:00:52.9]} 27... Qd5 {[%clk
0:00:15.2]} 28. Qc4 {[%clk 0:00:50.5]} 28... Qxc4 {[%clk 0:00:15.1]} 29. dxc4
{[%clk 0:00:51.4]} 29... Rc8 {[%clk 0:00:12.8]} 30. Rbd1 {[%clk 0:00:36]} 30...
a5 {[%clk 0:00:08.6]} 31. Rd7 {[%clk 0:00:31.6]} 31... Bf6 {[%clk 0:00:08.3]}
32. c5 {[%clk 0:00:31.2]} 32... Nxc5 {[%clk 0:00:06.8]} 33. Bxc5 {[%clk
0:00:30.3]} 33... Rxc5 {[%clk 0:00:07.7]} 34. b3 {[%clk 0:00:29.5]} 34... Kg7
{[%clk 0:00:07.5]} 35. Ra7 {[%clk 0:00:23.4]} 35... Rd5 {[%clk 0:00:06.9]} 36.
g3 {[%clk 0:00:19]} 36... Rd3 {[%clk 0:00:06.5]} 37. Rxa5 {[%clk 0:00:18.4]}
37... Rxb3 {[%clk 0:00:06.6]} 38. Rb5 {[%clk 0:00:18.6]} 38... Rb2 {[%clk
0:00:04.8]} 39. Rb7 {[%clk 0:00:18.9]} 39... b3 {[%clk 0:00:04.3]} 40. Rf3
{[%clk 0:00:17.9]} 40... Rb1+ {[%clk 0:00:04.5]} 41. Kg2 {[%clk 0:00:18.1]}
41... b2 {[%clk 0:00:05.2]} 42. Rfb3 {[%clk 0:00:17]} 42... Rc1 {[%clk
0:00:04.8]} 43. h4 {[%clk 0:00:15.6]} 43... Rc4 {[%clk 0:00:04.7]} 44. R7b4
{[%clk 0:00:14.6]} 44... Rc5 {[%clk 0:00:03.3]} 45. Rb5 {[%clk 0:00:14.8]} 45...
Rc6 {[%clk 0:00:03.2]} 46. Rb6 {[%clk 0:00:15.1]} 46... Rc2+ {[%clk 0:00:03.6]}
47. Kh3 {[%clk 0:00:14.4]} 47... Bd4 {[%clk 0:00:04.1]} 48. R6b4 {[%clk
0:00:13.2]} 48... e5 {[%clk 0:00:04.2]} 49. Rb7 {[%clk 0:00:12.5]} 49... Rc1
{[%clk 0:00:02.8]} 50. Kg2 {[%clk 0:00:11.3]} 50... Kh6 {[%clk 0:00:02.9]} 51.
g4 {[%clk 0:00:10.3]} 51... f5 {[%clk 0:00:02.5]} 52. Rg3 {[%clk 0:00:01.4]}
52... fxg4 {[%clk 0:00:01.6]} 53. Rxg4 {[%clk 0:00:01.3]} 53... b1=Q {[%clk
0:00:01.3]} 54. Kh3 {[%clk 0:00:02.2]} 54... Qxb7 {[%clk 0:00:01.1]} 0-1

[Event "*** Titled Tuesday Blitz"]
[Site "Chess.com"]
[Date "2021.03.02"]
[Round "9"]
[White "Atco84"]
[Black "BJthechessgod"]
[Result "0-1"]
[WhiteElo "2396"]
[BlackElo "2268"]
[TimeControl "180+1"]
[EndTime "11:48:12 PST"]
[Termination "BJthechessgod won by resignation"]

1. b3 {[%clk 0:03:00.9]} 1... Nf6 {[%clk 0:03:00.1]} 2. Bb2 {[%clk 0:03:01.8]}
2... e5 {[%clk 0:03:00.7]} 3. Bxe5 {[%clk 0:03:00.1]} 3... Nc6 {[%clk
0:02:59.4]} 4. Bb2 {[%clk 0:02:59.2]} 4... Bd6 {[%clk 0:02:59.6]} 5. Nf3 {[%clk
0:02:58.5]} 5... O-O {[%clk 0:03:00.1]} 6. g3 {[%clk 0:02:58.9]} 6... Re8 {[%clk
0:03:00.7]} 7. Bg2 {[%clk 0:02:59.4]} 7... Qe7 {[%clk 0:02:58.6]} 8. e3 {[%clk
0:02:59.3]} 8... Ne4 {[%clk 0:02:58.1]} 9. O-O {[%clk 0:02:57.8]} 9... Ne5
{[%clk 0:02:56.1]} 10. d3 {[%clk 0:02:51.2]} 10... Nxf3+ {[%clk 0:02:52.1]} 11.
Qxf3 {[%clk 0:02:50.5]} 11... Ng5 {[%clk 0:02:52.1]} 12. Qe2 {[%clk 0:02:44.2]}
12... c6 {[%clk 0:02:37.7]} 13. f4 {[%clk 0:02:30.2]} 13... Ne6 {[%clk
0:02:31.7]} 14. f5 {[%clk 0:02:29.5]} 14... Nd8 {[%clk 0:02:20]} 15. e4 {[%clk
0:02:17.5]} 15... f6 {[%clk 0:02:10.2]} 16. Nd2 {[%clk 0:02:12.1]} 16... Nf7
{[%clk 0:02:00.9]} 17. d4 {[%clk 0:02:12.1]} 17... b5 {[%clk 0:01:57]} 18. Rae1
{[%clk 0:02:09.5]} 18... c5 {[%clk 0:01:54.7]} 19. e5 {[%clk 0:01:57.9]} 19...
Rb8 {[%clk 0:01:40.9]} 20. Bd5 {[%clk 0:01:45.6]} 20... cxd4 {[%clk 0:01:29.5]}
21. Nf3 {[%clk 0:01:17.2]} 21... fxe5 {[%clk 0:01:24.1]} 22. Bxd4 {[%clk
0:00:48.6]} 22... exd4 {[%clk 0:01:22.4]} 23. Qxe7 {[%clk 0:00:33.3]} 23... Rxe7
{[%clk 0:01:21.4]} 24. Rxe7 {[%clk 0:00:33.5]} 24... Bxe7 {[%clk 0:01:22.3]} 25.
Ne5 {[%clk 0:00:33.9]} 25... Kf8 {[%clk 0:01:05.5]} 26. Nxf7 {[%clk 0:00:28.4]}
26... d6 {[%clk 0:00:51.8]} 27. Be6 {[%clk 0:00:20.4]} 27... Bb7 {[%clk
0:00:45.6]} 28. Rd1 {[%clk 0:00:20.5]} 28... d5 {[%clk 0:00:35.2]} 29. Ne5
{[%clk 0:00:19.2]} 29... Ke8 {[%clk 0:00:33.7]} 30. Bf7+ {[%clk 0:00:18.4]}
30... Kd8 {[%clk 0:00:33.1]} 31. Be6 {[%clk 0:00:19.3]} 31... Ke8 {[%clk
0:00:32.6]} 32. Nf3 {[%clk 0:00:19.3]} 32... Bf6 {[%clk 0:00:32.5]} 33. Nxd4
{[%clk 0:00:19.5]} 33... a6 {[%clk 0:00:29.9]} 34. Kf2 {[%clk 0:00:19.8]} 34...
Ke7 {[%clk 0:00:28.8]} 35. Ke3 {[%clk 0:00:20]} 35... Kd6 {[%clk 0:00:27.6]} 36.
Kd3 {[%clk 0:00:20.3]} 36... b4 {[%clk 0:00:22.6]} 37. a3 {[%clk 0:00:19.7]}
37... a5 {[%clk 0:00:22.8]} 38. axb4 {[%clk 0:00:19.6]} 38... axb4 {[%clk
0:00:23.7]} 39. Ra1 {[%clk 0:00:19.2]} 39... Ra8 {[%clk 0:00:23.9]} 40. Rxa8
{[%clk 0:00:18.9]} 40... Bxa8 {[%clk 0:00:24.8]} 41. Nf3 {[%clk 0:00:18.4]}
41... Bb7 {[%clk 0:00:23.7]} 42. g4 {[%clk 0:00:18.8]} 42... Ba6+ {[%clk
0:00:24.1]} 43. Ke3 {[%clk 0:00:18.4]} 43... h6 {[%clk 0:00:23.2]} 44. h4 {[%clk
0:00:18.4]} 44... Bc3 {[%clk 0:00:18.2]} 45. g5 {[%clk 0:00:17.9]} 45... hxg5
{[%clk 0:00:18.3]} 46. hxg5 {[%clk 0:00:18.4]} 46... Bf1 {[%clk 0:00:16.9]} 47.
Bg8 {[%clk 0:00:16.5]} 47... Bh3 {[%clk 0:00:16.5]} 48. Kf4 {[%clk 0:00:16.2]}
48... Bg2 {[%clk 0:00:14.9]} 49. f6 {[%clk 0:00:13.3]} 49... gxf6 {[%clk
0:00:15]} 50. g6 {[%clk 0:00:14.2]} 50... f5 {[%clk 0:00:14.3]} 51. Bh7 {[%clk
0:00:12.9]} 51... Bg7 {[%clk 0:00:13.5]} 52. Bg8 {[%clk 0:00:12.7]} 52... Ke7
{[%clk 0:00:13.8]} 53. Ne5 {[%clk 0:00:10.4]} 53... Be4 {[%clk 0:00:10.4]} 54.
Nc6+ {[%clk 0:00:08.4]} 54... Kf8 {[%clk 0:00:10.4]} 55. Nxb4 {[%clk 0:00:09.3]}
55... Kxg8 {[%clk 0:00:10.4]} 56. c4 {[%clk 0:00:08.3]} 56... d4 {[%clk
0:00:10.3]} 57. Na6 {[%clk 0:00:04.8]} 57... d3 {[%clk 0:00:09.5]} 58. Ke3
{[%clk 0:00:05.3]} 58... Bc3 {[%clk 0:00:10]} 59. Nc5 {[%clk 0:00:04.9]} 59...
d2 {[%clk 0:00:10.1]} 60. Ke2 {[%clk 0:00:04.7]} 60... Bf3+ {[%clk 0:00:10.4]}
61. Kxf3 {[%clk 0:00:05.2]} 61... d1=Q+ {[%clk 0:00:10.9]} 62. Kf4 {[%clk
0:00:06.1]} 62... Qd4+ {[%clk 0:00:10.8]} 0-1